fUST/lending_fUST_20240708
["ID","MTS","AMOUNT","RATE_DAILY","PERIOD"]
[331431792,1720397433666,-500.0,0.00059178,120]
[331431793,1720397433675,-500.0,0.00059452,120]
[331431794,1720397433684,-3000.0,0.00059457,120]
[331431795,1720397433693,-500.0,0.00059726,120]
[331431796,1720397433703,-181.096531,0.00059726,2]
[331431797,1720397433712,-500.0,0.00059999,120]
[331431798,1720397433721,-489.0,0.00059999,120]
[331431799,1720397433730,-500.0,0.00060273,120]
[331431800,1720397433739,-533.63057192,0.00060273,120]
[331431801,1720397433749,-503.15381746,0.00060273,120]
[331431802,1720397433758,-584.43850952,0.00060273,2]
[331431803,1720397433768,-1089.33,0.00060273,120]
[331431804,1720397433780,-1089.33,0.00060273,120]
[331431805,1720397433789,-1089.33,0.00060273,120]
[331431806,1720397433799,-508.00651317,0.00060273,120]
[331431807,1720397433808,-1562.06,0.00060273,120]
[331431808,1720397433818,-1562.06,0.00060273,120]
[331431809,1720397433828,-1562.06,0.00060273,120]
[331431810,1720397433837,-509.93020734,0.00060273,120]
[331431811,1720397433850,-506.3388492,0.00060273,120]
[331431812,1720397433863,-1376.22,0.00060273,120]
[331431813,1720397433873,-1376.22,0.00060273,120]
[331431814,1720397433883,-1376.22,0.00060273,120]
[331431815,1720397433892,-505.49915012,0.00060273,120]
[331431816,1720397433901,-500.0,0.00060273,120]
[331431817,1720397433911,-507.67052457,0.00060273,120]
[331431818,1720397433920,-508.03860242,0.00060273,120]
[331431819,1720397433930,-621.6560513,0.00060273,120]
[331431820,1720397433939,-506.82423339,0.00060273,120]
[331431821,1720397433948,-500.0,0.00060979,120]
[331431822,1720397433957,-1089.33,0.00061421,120]
[331431823,1720397433966,-1562.06,0.00061421,120]
[331431824,1720397433976,-1376.22,0.00061421,120]
[331431825,1720397433994,-5140.45515462,0.00061526,2]
[331431826,1720397434005,-500.0,0.00061546,120]
[331431827,1720397434014,-5140.45515462,0.00061928,2]
[331431828,1720397434024,-2000.0,0.00062202,120]
[331431829,1720397434033,-1089.33,0.00062301,120]
[331431830,1720397434043,-1562.06,0.00062301,120]
[331431831,1720397434054,-1376.22,0.00062301,120]
[331431832,1720397434064,-796.14752677,0.00062412,8]
[331431833,1720397434073,-13534.5079551,0.00062413,8]
[331431834,1720397434083,-156.0,0.0006242,82]
[331431835,1720397434094,-500.0,0.00062422,120]
[331431836,1720397434104,-500.0,0.00062422,120]
[331431837,1720397434114,-532.36876233,0.00062422,120]
[331431838,1720397434124,-1999.0,0.00062422,120]
[331431839,1720397434134,-999.0,0.00062422,120]
[331431840,1720397434143,-1089.33,0.00062422,120]
[331431841,1720397434154,-1089.33,0.00062422,120]
[331431842,1720397434164,-1089.33,0.00062422,120]
[331431843,1720397434174,-1089.33,0.00062422,120]
[331431844,1720397434183,-1089.33,0.00062422,120]
[331431845,1720397434193,-1089.33,0.00062422,120]
[331431846,1720397434203,-1089.33,0.00062422,120]
[331431847,1720397434213,-1089.33,0.00062422,120]
[331431848,1720397434222,-1089.33,0.00062422,120]
[331431849,1720397434231,-1089.33,0.00062422,120]
[331431850,1720397434241,-1089.33,0.00062422,120]
[331431851,1720397434250,-1089.33,0.00062422,120]
[331431852,1720397434260,-1089.33,0.00062422,120]
[331431853,1720397434269,-1089.33,0.00062422,120]
[331431854,1720397434279,-1089.33,0.00062422,120]
[331431855,1720397434288,-1089.33,0.00062422,120]
[331431856,1720397434298,-1089.33,0.00062422,120]
[331431857,1720397434308,-1089.33,0.00062422,120]
[331431858,1720397434318,-1089.38010825,0.00062422,120]
[331431859,1720397434328,-1562.06,0.00062422,120]
[331431860,1720397434338,-1562.06,0.00062422,120]
[331431861,1720397434354,-1562.06,0.00062422,120]
[331431862,1720397434364,-1562.06,0.00062422,120]
[331431863,1720397434373,-1562.06,0.00062422,120]
[331431864,1720397434383,-1562.06,0.00062422,120]
[331431865,1720397434395,-1562.06,0.00062422,120]
[331431866,1720397434405,-1562.06,0.00062422,120]
[331431867,1720397434414,-1562.06,0.00062422,120]
[331431868,1720397434423,-1562.06,0.00062422,120]
[331431869,1720397434432,-1562.06,0.00062422,120]
[331431870,1720397434441,-1562.06,0.00062422,120]
[331431871,1720397434450,-1562.06,0.00062422,120]
[331431872,1720397434459,-1562.06,0.00062422,120]
[331431873,1720397434468,-1562.06,0.00062422,120]
[331431874,1720397434477,-1562.06,0.00062422,120]
[331431875,1720397434487,-1562.06,0.00062422,120]
[331431876,1720397434496,-1562.06,0.00062422,120]
[331431877,1720397434506,-1376.22,0.00062422,120]
[331431878,1720397434515,-1562.24997003,0.00062422,120]
[331431879,1720397434525,-1376.22,0.00062422,120]
[331431880,1720397434534,-1376.22,0.00062422,120]
[331431881,1720397434643,-1376.22,0.00062422,120]
[331431882,1720397434653,-1376.22,0.00062422,120]
[331431883,1720397434663,-1376.22,0.00062422,120]
[331431884,1720397434672,-1376.22,0.00062422,120]
[331431885,1720397434681,-1376.22,0.00062422,120]
[331431886,1720397434690,-1376.22,0.00062422,120]
[331431887,1720397434699,-1376.22,0.00062422,120]
[331431888,1720397434709,-1376.22,0.00062422,120]
[331431889,1720397434718,-1376.22,0.00062422,120]
[331431890,1720397434727,-1376.22,0.00062422,120]
[331431891,1720397434737,-1376.22,0.00062422,120]
[331431892,1720397434747,-1376.22,0.00062422,120]
[331431893,1720397434756,-1376.22,0.00062422,120]
[331431894,1720397434766,-1376.22,0.00062422,120]
[331431895,1720397434780,-1376.22,0.00062422,120]
[331431896,1720397434791,-1376.38,0.00062422,120]
[331431897,1720397434800,-1195.83046256,0.00062423,61]
[331431898,1720397434811,-343263.54157423,0.00062423,30]
[331431910,1720397437993,-150.19531839,0.00060173,2]
[331431911,1720397438003,-130.66554837,0.00060263,3]
[331431912,1720397438054,-2780.0,0.00060263,3]
[331431946,1720397440247,-2454.50667483,0.00060263,3]
[331431983,1720397490924,186.023871,0.00021096,2]
[331431985,1720397545954,812.27576347,0.00043834,21]
[331431995,1720398359182,-159.567916,0.00021096,2]
[331431996,1720398359202,-284.30371793,0.0003,3]
[331431997,1720398359226,-1433.67398634,0.00036229,4]
[331431998,1720398436149,-155.21817688,0.00036229,20]
[331431999,1720398436172,-220.51056512,0.00036229,4]
[331432000,1720398450141,-33.58823031,0.00036229,4]
[331432001,1720398450163,-127.73142322,0.00036229,4]
[331432002,1720398451143,-1598.44335151,0.00036229,4]
[331432003,1720398451164,-451.07885988,0.00036229,4]
[331432004,1720398451187,-186.86247041,0.00036229,4]
[331432005,1720398567094,-388.29031934,0.00036229,4]
[331432006,1720398567115,-1025.57827945,0.00036229,4]
[331432007,1720398567139,-188.97333964,0.00036229,4]
[331432008,1720398567161,-159.567916,0.00037652,2]
[331432009,1720398567184,-966.90549909,0.00037899,4]
[331432010,1720398567205,-193.84329424,0.00039994,4]
[331432011,1720398567233,-181.90754179,0.00039994,4]
[331432012,1720398567256,-315.53452802,0.0004,120]
[331432013,1720398567280,-151.0,0.0004,120]
[331432014,1720398567303,-151.0,0.0004,120]
[331432015,1720398567323,-817.1254087,0.00041999,4]
[331432016,1720398567348,-176.28738677,0.00042229,4]
[331432017,1720398567372,-516.62481897,0.00042398,4]
[331432018,1720398567511,-400.18976006,0.00042398,2]
[331432019,1720398567532,-842.54666328,0.00042629,4]
[331432020,1720398567552,-154.98402403,0.00042999,4]
[331432021,1720398567572,-813.77991392,0.00042999,4]
[331432022,1720398567592,-156.41306098,0.00043287,4]
[331432023,1720398567612,-151.0,0.00043342,120]
[331432024,1720398567632,-1145.83354572,0.00043615,4]
[331432033,1720398632477,-154.86836189,0.00042398,4]
[331432035,1720398632487,-155.12163422,0.00042629,4]
[331432037,1720398632496,-806.63952424,0.00043834,4]
[331432039,1720398632506,-72.68874978,0.00044336,2]
[331432085,1720398638857,-93.97791622,0.00044336,2]
[331432086,1720398638866,-160.072088,0.00044918,2]
[331432087,1720398638876,-159.619288,0.00045452,2]
[331432088,1720398638885,-151.0,0.00045562,120]
[331432089,1720398638895,-166.666666,0.00045847,2]
[331432090,1720398638905,-151.0,0.00046685,120]
[331432091,1720398638915,-453.2286641,0.00047042,2]
[331432092,1720398638924,-166.666666,0.00047358,2]
[331432093,1720398638934,-166.666666,0.00048869,2]
[331432094,1720398638945,-500.0,0.0005,120]
[331432095,1720398638955,-151.0,0.00050027,120]
[331432096,1720398638965,-632.19064845,0.000501,120]
[331432097,1720398638977,-530.76552842,0.000501,120]
[331432104,1720398640452,-1837.04382313,0.000501,120]
[331432105,1720398640463,-166.666666,0.0005038,2]
[331432106,1720398640473,-151.0,0.00051123,120]
[331432107,1720398640483,-600.0,0.000528,2]
[331432108,1720398640493,-155.13282617,0.00052866,4]
[331432109,1720398640503,-429.31673618,0.00052866,4]
[331432110,1720398640512,-810.36419892,0.0005335,2]
[331432111,1720398640523,-151.0,0.0005337,120]
[331432112,1720398640533,-159.567916,0.00054207,2]
[331432113,1720398640543,-877.0,0.00054233,120]
[331432114,1720398640553,-2663.2156058,0.0005488,120]
[331432136,1720398643512,-336.7843942,0.0005488,120]
[331432137,1720398643522,-151.0,0.00056685,120]
[331432138,1720398643532,-151.0,0.00056712,120]
[331432139,1720398643541,-1648.42561634,0.00059661,120]
[331432140,1720398643638,-1351.57438366,0.00059661,120]
[331432141,1720398643648,-500.0,0.0006,120]
[331432142,1720398643657,-151.0,0.00060055,120]
[331432143,1720398643666,-151.0,0.00062247,120]
[331432144,1720398643675,-267.25,0.00062303,30]
[331432145,1720398643684,-316.76,0.00062311,120]
[331432146,1720398643693,-1216.53,0.00062312,120]
[331432147,1720398643702,-500.0,0.00062312,120]
[331432148,1720398643711,-500.0,0.00062312,120]
[331432149,1720398643720,-617.45,0.00062312,120]
[331432150,1720398643729,-617.45,0.00062312,120]
[331432151,1720398643738,-1216.53,0.00062321,120]
[331432152,1720398643748,-500.0,0.00062321,120]
[331432154,1720398643760,-500.0,0.00062321,120]
[331432156,1720398643769,-500.0,0.00062322,120]
[331432158,1720398643778,-428.40920657,0.00062322,120]
[331432159,1720398643790,-71.59079343,0.00062322,120]
[331432160,1720398643799,-500.0,0.00062322,120]
[331432161,1720398643808,-232.01649038,0.00062322,120]
[331432162,1720398643817,-500.0,0.00062322,120]
[331432163,1720398643827,-500.0,0.00062322,120]
[331432164,1720398643837,-1216.53,0.00062322,120]
[331432165,1720398643846,-500.0,0.00062322,120]
[331432166,1720398643856,-500.0,0.00062322,120]
[331432167,1720398643865,-183.61165653,0.00062322,2]
[331432168,1720398643875,-500.0,0.00062322,120]
[331432169,1720398643884,-500.0,0.00062322,120]
[331432170,1720398643894,-500.0,0.00062322,120]
[331432171,1720398643903,-500.0,0.00062322,10]
[331432172,1720398643913,-500.0,0.00062322,2]
[331432173,1720398643922,-500.0,0.00062322,120]
[331432174,1720398643931,-1440.0,0.00062322,60]
[331432175,1720398643940,-617.45,0.00062322,120]
[331432176,1720398643949,-617.45,0.00062322,120]
[331432177,1720398643958,-183.61165652,0.00062322,2]
[331432178,1720398643967,-183.61165652,0.00062323,2]
[331432179,1720398643977,-183.61165652,0.00062323,2]
[331432180,1720398643986,-183.61165652,0.00062323,2]
[331432181,1720398643995,-73813.63623654,0.00062323,120]
[331432182,1720398644007,-2000.0,0.00062323,120]
[331432183,1720398644016,-500.0,0.00062411,120]
[331432184,1720398644025,-500.0,0.00062411,120]
[331432185,1720398644034,-500.0,0.00062411,120]
[331432186,1720398644043,-496.22739198,0.00062411,120]
[331432187,1720398644053,-31524.34,0.00062411,3]
[331432188,1720398644063,-168.08460899,0.00062421,120]
[331432189,1720398644072,-202.64050775,0.00062421,31]
[331432190,1720398644081,-464.16931438,0.00062421,120]
[331432191,1720398644091,-459.02393622,0.00062421,120]
[331432192,1720398644100,-1216.53,0.00062421,120]
[331432193,1720398644110,-500.0,0.00062421,120]
[331432194,1720398644119,-501.04907312,0.00062421,120]
[331432195,1720398644128,-617.45,0.00062421,120]
[331432196,1720398644138,-500.0,0.00062422,120]
[331432197,1720398644147,-500.0,0.00062422,120]
[331432198,1720398644162,-500.0,0.00062422,120]
[331432199,1720398644171,-500.0,0.00062422,120]
[331432200,1720398644181,-500.0,0.00062422,120]
[331432201,1720398644190,-500.0,0.00062422,120]
[331432202,1720398644201,-500.0,0.00062422,120]
[331432203,1720398644210,-500.0,0.00062422,120]
[331432204,1720398644219,-500.0,0.00062422,120]
[331432205,1720398644229,-500.0,0.00062422,120]
[331432206,1720398644239,-500.0,0.00062422,120]
[331432207,1720398644248,-500.0,0.00062422,120]
[331432208,1720398644260,-500.0,0.00062422,120]
[331432209,1720398644270,-500.0,0.00062422,120]
[331432210,1720398644279,-500.0,0.00062422,120]
[331432211,1720398644288,-500.0,0.00062422,120]
[331432212,1720398644298,-500.0,0.00062422,120]
[331432213,1720398644307,-500.0,0.00062422,120]
[331432214,1720398644316,-569.43741555,0.00062422,120]
[331432215,1720398644326,-1216.53,0.00062422,120]
[331432216,1720398644334,-1216.53,0.00062422,120]
[331432217,1720398644343,-1216.53,0.00062422,120]
[331432218,1720398644353,-1216.53,0.00062422,120]
[331432219,1720398644362,-1216.53,0.00062422,120]
[331432220,1720398644372,-1216.53,0.00062422,120]
[331432221,1720398644381,-1216.53,0.00062422,120]
[331432222,1720398644390,-1216.53,0.00062422,120]
[331432223,1720398644399,-1216.53,0.00062422,120]
[331432224,1720398644408,-1216.53,0.00062422,120]
[331432225,1720398644417,-1216.53,0.00062422,120]
[331432226,1720398644427,-1216.53,0.00062422,120]
[331432227,1720398644437,-1216.53,0.00062422,120]
[331432228,1720398644446,-1216.53,0.00062422,120]
[331432229,1720398644456,-1216.53,0.00062422,120]
[331432230,1720398644465,-1216.53,0.00062422,120]
[331432231,1720398644474,-1216.53,0.00062422,120]
[331432232,1720398644484,-1216.53,0.00062422,120]
[331432233,1720398644493,-1216.53,0.00062422,120]
[331432234,1720398644506,-1216.74989036,0.00062422,120]
[331432235,1720398644515,-500.0,0.00062422,120]
[331432236,1720398644524,-500.0,0.00062422,120]
[331432237,1720398644535,-500.0,0.00062422,120]
[331432238,1720398644544,-194.43937605,0.00062422,120]
[331432239,1720398644553,-500.0,0.00062422,120]
[331432240,1720398644563,-500.0,0.00062422,120]
[331432241,1720398644572,-500.0,0.00062422,120]
[331432242,1720398644584,-258.512191,0.00062422,120]
[331432243,1720398644594,-617.45,0.00062422,120]
[331432244,1720398644604,-617.45,0.00062422,120]
[331432245,1720398644613,-617.45,0.00062422,120]
[331432246,1720398644623,-617.45,0.00062422,120]
[331432247,1720398644632,-617.45,0.00062422,120]
[331432248,1720398644641,-617.45,0.00062422,120]
[331432249,1720398644652,-617.45,0.00062422,120]
[331432250,1720398644661,-617.45,0.00062422,120]
[331432251,1720398644671,-617.45,0.00062422,120]
[331432252,1720398644681,-617.45,0.00062422,120]
[331432253,1720398644690,-617.45,0.00062422,120]
[331432254,1720398644699,-617.45,0.00062422,120]
[331432255,1720398644709,-617.45,0.00062422,120]
[331432256,1720398644718,-617.45,0.00062422,120]
[331432257,1720398644727,-617.45,0.00062422,120]
[331432258,1720398644736,-617.45,0.00062422,120]
[331432259,1720398644745,-617.45,0.00062422,120]
[331432260,1720398644757,-617.45,0.00062422,120]
[331432261,1720398644766,-617.46317513,0.00062422,120]
[331432262,1720398644775,-196.72454409,0.00062422,120]
[331432263,1720398644784,-198.92970616,0.00062422,120]
[331432264,1720398644794,-597.91523128,0.00062423,61]
[331432265,1720398644803,-195803.48940502,0.00062423,30]
[331432283,1720399061310,-177.175254,0.00021096,2]
[331432285,1720399107259,278.4044108,0.00021096,2]
[331432286,1720399110524,421.4203352,0.00021096,2]
[331432302,1720399548184,-171.942851,0.00021096,2]
[331432303,1720399548203,-342.06959586,0.00021096,2]
[331432304,1720399548220,-257.69157416,0.0003624,2]
[331432305,1720399548239,-582.21188312,0.00038,10]
[331432306,1720399548259,-47.18551315,0.00038999,4]
[331432309,1720399625113,-378.01412676,0.00038999,4]
[331432310,1720399625133,-400.0,0.00039999,3]
[331432311,1720399625152,-400.0,0.00039999,5]
[331432312,1720399625172,-151.0,0.0004,120]
[331432313,1720399625193,-151.0,0.0004,120]
[331432314,1720399625212,-678.13673044,0.0004,2]
[331432315,1720399626112,-600.0,0.0004,2]
[331432316,1720399627137,-3063.48410525,0.0004,2]
[331432320,1720399749114,-380.0,0.0003463,2]
[331432321,1720399749136,-188.0,0.00039239,30]
[331432322,1720399749157,-158.0,0.00039239,30]
[331432323,1720399749177,-966.90549909,0.00039393,4]
[331432324,1720399749198,-157.61496837,0.000399,2]
[331432325,1720399749233,-812.27576347,0.00039993,21]
[331432326,1720399749256,-243.77522574,0.00039994,4]
[331432327,1720399749279,-400.0,0.00039999,3]
[331432328,1720399749300,-25.797147,0.0004,2]
[331432337,1720399798452,-26472.44156078,0.0004,2]
[331432338,1720399798475,-1554.07391532,0.0004,2]
[331432361,1720399833708,-315.53452802,0.00040229,120]
[331432362,1720399833718,-193.84329424,0.00040807,4]
[331432363,1720399833727,-181.90754179,0.00040999,4]
[331432364,1720399833736,-509.35145067,0.00042999,4]
[331432365,1720399833746,-177.175254,0.00044274,2]
[331432366,1720399833755,-157.55992319,0.00044784,30]
[331432367,1720399833765,-718.71241779,0.000448,120]
[331432368,1720399833775,-157.55992319,0.00044852,30]
[331432369,1720399833785,-151.0,0.00044986,120]
[331432370,1720399833795,-157.55992319,0.00045031,30]
[331432371,1720399833804,-157.55992319,0.00045394,30]
[331432372,1720399833814,-220.0,0.0004622,5]
[331432373,1720399833824,-412.1326252,0.00046221,2]
[331432374,1720399833833,-341.5021965,0.00046221,2]
[331432375,1720399833843,-157.55992319,0.00046515,30]
[331432376,1720399833853,-157.55992319,0.00046567,30]
[331432377,1720399833863,-160.520466,0.00046693,2]
[331432378,1720399833872,-157.55992319,0.0004677,30]
[331432379,1720399833881,-153.0,0.00047086,2]
[331432380,1720399833891,-153.0,0.00047086,2]
[331432381,1720399833900,-157.55992319,0.00047953,30]
[331432382,1720399833910,-151.0,0.00048329,120]
[331432383,1720399833919,-1567.77514604,0.00048484,2]
[331432384,1720399833931,-1187.20681687,0.00048484,2]
[331432385,1720399833941,-157.55992319,0.00049139,30]
[331432386,1720399833950,-157.55992319,0.00049353,30]
[331432387,1720399833959,-157.55992319,0.00049417,30]
[331432388,1720399833968,-157.55992319,0.00049899,30]
[331432389,1720399833977,-151.0,0.00049973,120]
[331432390,1720399833986,-510.0,0.0005,120]
[331432391,1720399833995,-286.33692091,0.0005,30]
[331432392,1720399834004,-3000.0,0.000501,120]
[331432393,1720399834013,-157.55992319,0.00050739,60]
[331432394,1720399834023,-157.55992328,0.0005238,60]
[331432395,1720399834032,-151.0,0.00054959,120]
[331432396,1720399834041,-3000.0,0.00054987,120]
[331432397,1720399834050,-328.829,0.00055375,120]
[331432398,1720399834059,-151.0,0.00056658,120]
[331432399,1720399834069,-150.54835494,0.00058515,2]
[331432400,1720399834078,-3000.0,0.00059873,120]
[331432401,1720399834087,-151.0,0.00059945,120]
[331432402,1720399834097,-500.0,0.0006,120]
[331432403,1720399834109,-500.0,0.0006,120]
[331432404,1720399834119,-500.0,0.000602,120]
[331432405,1720399834128,-500.0,0.00060273,120]
[331432406,1720399834137,-500.0,0.00060273,120]
[331432407,1720399834146,-500.0,0.00060273,120]
[331432408,1720399834156,-500.0,0.00060273,120]
[331432409,1720399834165,-500.0,0.00060273,120]
[331432410,1720399834174,-500.0,0.00060273,120]
[331432411,1720399834183,-500.0,0.00060273,120]
[331432412,1720399834192,-500.0,0.00060273,120]
[331432413,1720399834202,-500.0,0.00060273,2]
[331432414,1720399834211,-500.0,0.000605,120]
[331432415,1720399834219,-500.0,0.000605,120]
[331432416,1720399834228,-500.0,0.000605,120]
[331432417,1720399834237,-809.54061456,0.000606,120]
[331432418,1720399834246,-500.0,0.000606,120]
[331432419,1720399834255,-500.0,0.000606,120]
[331432420,1720399834264,-500.0,0.000607,120]
[331432421,1720399834273,-316.76,0.00061899,120]
[331432422,1720399834282,-428.40920657,0.00061899,120]
[331432423,1720399834379,-500.0,0.00061899,120]
[331432424,1720399834389,-500.0,0.00061899,120]
[331432425,1720399834400,-20119.0,0.000619,120]
[331432426,1720399834409,-2895.0,0.00062,120]
[331432427,1720399834419,-2000.0,0.000621,120]
[331432428,1720399834428,-2000.0,0.000621,120]
[331432429,1720399834437,-2000.0,0.000621,120]
[331432430,1720399834446,-2000.0,0.000621,120]
[331432431,1720399834455,-2000.0,0.000621,120]
[331432432,1720399834467,-606.02315881,0.00062202,2]
[331432433,1720399834477,-606.02315879,0.00062232,2]
[331432434,1720399834487,-267.25,0.00062242,30]
[331432435,1720399834495,-606.02315879,0.00062263,2]
[331432436,1720399834505,-500.0,0.00062281,120]
[331432437,1720399834518,-500.0,0.00062281,120]
[331432438,1720399834527,-606.02315879,0.00062293,2]
[331432439,1720399834536,-500.0,0.00062301,120]
[331432440,1720399834546,-500.0,0.00062301,120]
[331432441,1720399834555,-500.0,0.00062312,120]
[331432442,1720399834564,-500.0,0.00062312,120]
[331432443,1720399834573,-500.0,0.00062312,120]
[331432444,1720399834582,-500.0,0.00062312,120]
[331432445,1720399834592,-500.0,0.00062312,120]
[331432446,1720399834604,-500.0,0.00062312,120]
[331432447,1720399834613,-500.0,0.00062312,120]
[331432448,1720399834622,-500.0,0.00062312,2]
[331432449,1720399834631,-500.0,0.00062312,120]
[331432450,1720399834640,-2140.0,0.00062312,60]
[331432451,1720399834649,-500.0,0.00062321,120]
[331432452,1720399834658,-500.0,0.00062321,120]
[331432453,1720399834667,-500.0,0.00062321,120]
[331432454,1720399834676,-500.0,0.00062321,2]
[331432455,1720399834686,-500.0,0.00062322,120]
[331432456,1720399834695,-500.73524034,0.00062322,120]
[331432457,1720399834704,-500.0,0.00062322,120]
[331432458,1720399834713,-500.0,0.00062322,120]
[331432459,1720399834722,-606.02315879,0.00062323,2]
[331432460,1720399834730,-500.0,0.00062382,120]
[331432461,1720399834739,-500.0,0.00062382,120]
[331432462,1720399834748,-595.61066738,0.00062382,120]
[331432463,1720399834757,-500.0,0.00062382,120]
[331432464,1720399834766,-18243.25,0.00062393,3]
[331432465,1720399834785,-500.0,0.00062402,2]
[331432466,1720399834795,-21891.9,0.00062403,3]
[331432467,1720399834805,-26270.29,0.00062413,3]
[331432468,1720399834814,-500.0,0.00062421,120]
[331432469,1720399834823,-500.0,0.00062421,120]
[331432470,1720399834833,-500.0,0.00062422,120]
[331432471,1720399834842,-500.0,0.00062422,120]
[331432472,1720399834854,-500.0,0.00062422,120]
[331432473,1720399834863,-500.0,0.00062422,120]
[331432474,1720399834872,-500.0,0.00062422,120]
[331432475,1720399834881,-336.98694441,0.00062422,120]
[331432476,1720399834891,-500.0,0.00062422,120]
[331432477,1720399834899,-500.0,0.00062422,120]
[331432478,1720399834908,-500.0,0.00062422,120]
[331432479,1720399834918,-500.0,0.00062422,120]
[331432480,1720399834927,-500.0,0.00062422,120]
[331432481,1720399834937,-175.15207766,0.00062422,120]
[331432482,1720399834946,-234.9,0.00062422,120]
[331432483,1720399834956,-500.0,0.00062422,120]
[331432484,1720399834966,-500.0,0.00062422,120]
[331432485,1720399834975,-433.06,0.00062422,120]
[331432486,1720399834984,-500.0,0.00062422,120]
[331432487,1720399834993,-504.95402756,0.00062422,120]
[331432488,1720399835002,-500.0,0.00062422,120]
[331432489,1720399835012,-500.0,0.00062422,120]
[331432490,1720399835021,-500.0,0.00062422,120]
[331432491,1720399835030,-500.0,0.00062422,120]
[331432492,1720399835040,-500.0,0.00062422,120]
[331432493,1720399835049,-500.0,0.00062422,120]
[331432494,1720399835058,-500.0,0.00062422,120]
[331432495,1720399835068,-500.0,0.00062422,120]
[331432496,1720399835077,-500.0,0.00062422,120]
[331432497,1720399835087,-500.0,0.00062422,120]
[331432498,1720399835096,-500.0,0.00062422,120]
[331432499,1720399835110,-500.0,0.00062422,120]
[331432500,1720399835119,-298.95761564,0.00062423,61]
[331432501,1720399835128,-693789.74272479,0.00062423,30]
[331432502,1720399835143,-513.86505271,0.00062423,30]
[331432548,1720399838658,-160.63587322,0.00062423,61]
[331432549,1720399838669,-5619.36412678,0.00062423,30]
[331432550,1720399838682,-319.48549197,0.00062423,30]
[331432632,1720399843032,-1786.2993495,0.00043,120]
[331432680,1720399843909,-254.04303549,0.00043,120]
[331432681,1720399843919,-9079.91055474,0.00062423,30]
[331432727,1720400141225,-174.23211,0.00021096,2]
[331432728,1720400141323,174.23211,0.00037652,2]
[331432764,1720400749194,-170.35079036,0.0003,4]
[331432765,1720400749216,-240.51125005,0.00037652,2]
[331432766,1720400749238,-315.1286507,0.00037652,4]
[331432768,1720400830101,-909.27,0.00037652,4]
[331432769,1720400837112,-742.77445246,0.00037652,4]
[331432770,1720400837133,-284.39384159,0.00037652,3]
[331432771,1720400837154,-577.75159908,0.00037652,4]
[331432772,1720400837176,-1844.090407,0.00037652,4]
[331432773,1720400837196,-490.90798241,0.00039393,2]
[331432774,1720400837216,-475.36485773,0.00039393,2]
[331432775,1720400837235,-276.42306753,0.00040278,4]
[331432776,1720400837255,-208.75741241,0.00042229,4]
[331432777,1720400837275,-597.61557581,0.00043287,4]
[331432778,1720400837296,-197.13244658,0.00043287,2]
[331432779,1720400837316,-159.921154,0.00047518,2]
[331432780,1720400837337,-887.2758267,0.00047809,2]
[331432781,1720400837358,-1275.71797085,0.000501,120]
[331432782,1720400843109,-1054.65620403,0.000501,120]
[331432783,1720400910396,-175.212742,0.00021096,2]
[331432784,1720400959096,-175.212742,0.00040411,2]
[331432787,1720401030271,243.08118595,0.00040411,3]
[331432936,1720401038413,-669.62582512,0.000501,120]
[331432939,1720401038429,-3000.0,0.00055214,120]
[331432941,1720401038444,-175.212742,0.00059726,2]
[331432943,1720401038454,-500.0,0.00060273,2]